bitfinex-derivatives/quotes_ETHF0:USTF0_20210403
["timestamp","ask_amount","ask_price","bid_price","bid_amount"]
[1617471743152,2.90695,2043.5,2043.2,0.14336928]
[1617471743351,2.90695,2043.5,2043.4,0.14337062]
[1617471743553,2.90695,2043.5,2043.3,0.14337072]
[1617471743954,2.90695,2043.5,2043.2,0.14337062]
[1617471744154,2.90695,2043.5,2043.4,0.14336901]
[1617471744654,0.9669,2045.2,2043.4,0.14336901]
[1617471744655,2.90695,2043.8,2043.4,2.90695]
[1617471744854,2.90695,2043.8,2043.5,0.14334761]
[1617471745055,2.90695,2043.8,2043.5,7.47090146]
[1617471745256,2.90695,2043.8,2043.7,55.1514]
[1617471745555,2.90695,2043.8,2043.7,62.62203164]
[1617471745957,2.90695,2043.8,2043.7,55.29473792]
[1617471746458,61.1375,2045.2,2043.7,62.62194072]
[1617471746658,61.1375,2045.2,2044.4,2.90695]
[1617471746860,2.0,2046.7,2044.5,0.14331516]
[1617471747060,71.5699,2046.4,2044.7,80.389]
[1617471747563,71.5699,2046.4,2044.8,0.14330305]
[1617471747760,71.5699,2046.4,2044.8,5.21487439]
[1617471748060,71.5699,2046.4,2044.8,0.14330305]
[1617471748259,71.5699,2046.4,2044.9,0.14331172]
[1617471748860,2.90695,2045.0,2044.8,0.14331244]
[1617471749060,2.90695,2045.0,2044.7,85.46071071]
[1617471749261,2.90695,2045.0,2044.9,2.03660733]
[1617471750562,2.90695,2045.0,2044.9,9.39818681]
[1617471750762,2.90695,2045.0,2044.7,79.78718681]
[1617471750964,2.90695,2045.0,2044.8,2.29301546]
[1617471751364,2.90695,2045.0,2044.7,79.78718681]
[1617471754773,2.90695,2045.0,2044.9,4.64775]
[1617471755671,71.5699,2046.4,2044.9,4.64775]
[1617471756071,0.9715,2046.5,2044.9,4.79103381]
[1617471756274,0.9715,2046.5,2045.9,5.0952494]
[1617471756473,0.9715,2046.5,2046.0,5.09513508]
[1617471756672,2.90695,2046.1,2046.0,7.17433508]
[1617471757275,2.90695,2046.1,2046.0,2.0792]
[1617471757574,2.90695,2046.1,2046.0,7.17434]
[1617471758274,2.90695,2046.1,2046.0,8.44927257]
[1617471758573,2.90695,2046.1,2046.0,2.22245795]
[1617471758775,2.90695,2046.1,2046.0,5.12940795]
[1617471759273,2.90695,2046.1,2046.0,2.22245795]
[1617471759876,2.90695,2046.1,2046.0,0.14325795]
[1617471760375,2.90695,2046.1,2046.0,8.67448952]
[1617471760575,2.90695,2046.1,2046.0,8.53123157]
[1617471760775,2.90695,2046.1,2046.0,8.67447935]
[1617471761075,2.90695,2046.1,2044.5,16.53266861]
[1617471761076,2.90695,2046.1,2045.9,8.53186426]
[1617471761476,2.90695,2046.1,2045.9,7.39603696]
[1617471761977,2.90695,2046.1,2045.8,7.3963577]
[1617471762778,2.90695,2046.1,2045.9,7.39579094]
[1617471763278,2.90695,2046.1,2046.0,1.34175849]
[1617471763478,2.90695,2046.1,2045.1,9.67141893]
[1617471763777,2.90695,2046.1,2045.2,0.14328611]
[1617471763980,2.90695,2046.1,2044.9,83.38743709]
[1617471764377,2.90695,2046.1,2045.0,0.14328884]
[1617471764781,2.90695,2045.1,2045.0,0.14328884]
[1617471765681,2.90695,2045.1,2044.9,0.14329568]
[1617471766380,2.90695,2045.1,2044.9,9.81580786]
[1617471766784,2.90695,2045.1,2044.9,0.14329568]
[1617471766983,2.90695,2045.1,2045.0,0.14329626]
[1617471767585,2.90695,2045.1,2044.9,9.81604746]
[1617471767884,2.90695,2045.1,2045.0,0.14329868]
[1617471768284,2.90695,2045.1,2044.9,0.14329938]
[1617471768485,2.90695,2045.1,2045.0,0.14329874]
[1617471768987,2.90695,2045.1,2044.9,9.81569831]
[1617471769185,2.90695,2045.1,2045.0,0.14329405]
[1617471770487,2.90695,2045.1,2044.9,0.14330163]
[1617471771588,2.90695,2045.1,2044.8,0.14330153]
[1617471771889,2.90695,2045.1,2045.0,0.1432996]
[1617471772288,2.90695,2045.1,2044.8,10.97849634]
[1617471772588,2.90695,2045.1,2045.0,0.14329594]
[1617471772791,2.90695,2045.1,2044.9,0.14329542]
[1617471773391,2.90695,2045.1,2044.9,10.97916955]
[1617471773890,2.90695,2045.1,2045.0,0.14329326]
[1617471774090,2.90695,2045.1,2044.9,10.83587413]
[1617471774492,2.90695,2045.1,2045.0,0.14329464]
[1617471775792,2.90695,2045.1,2045.0,2.19329464]
[1617471775992,2.90695,2045.1,2045.0,13.02833204]
[1617471776394,2.90695,2045.1,2045.0,2.19329464]
[1617471778098,2.90695,2045.1,2045.0,0.14329464]
[1617471778996,2.90695,2045.1,2044.8,0.14328736]
[1617471779396,2.90695,2045.1,2044.1,72.56825]
[1617471779397,2.90695,2045.1,2044.9,10.8357456]
[1617471779697,2.90695,2045.1,2045.0,0.14328976]
[1617471781501,2.90695,2045.1,2044.9,0.14330154]
[1617471781800,2.90695,2045.1,2045.0,0.14329791]
[1617471782402,2.90695,2045.1,2044.9,10.97451144]
[1617471782603,2.90695,2045.1,2045.0,10.83071834]
[1617471782902,2.90695,2045.1,2045.0,10.97400063]
[1617471783303,2.90695,2045.1,2045.0,0.14328229]
[1617471783603,2.90695,2045.1,2044.8,0.14327553]
[1617471783805,2.90695,2045.1,2044.9,56.3084]
[1617471784104,2.90695,2045.1,2045.0,10.82704032]
[1617471784304,2.90695,2045.1,2045.0,10.97031955]
[1617471786614,2.90695,2045.1,2045.0,0.14327923]
[1617471787609,2.90695,2045.1,2045.0,10.97000764]
[1617471790311,2.90695,2045.1,2045.0,12.55170764]
[1617471790612,2.90695,2045.1,2045.0,1.72497923]
[1617471790914,2.90695,2045.1,2045.0,4.63192923]
[1617471794023,2.90695,2045.1,2045.0,15.45199219]
[1617471794623,2.90695,2045.1,2045.0,12.54504219]
[1617471797724,2.90695,2045.1,2045.0,1.72497923]
[1617471797925,2.90695,2045.1,2045.0,0.14327923]
[1617471798125,13.90695,2045.1,2045.0,0.14327923]
[1617471800930,13.90695,2045.1,2045.0,10.96395307]
[1617471802634,13.90695,2045.1,2045.0,0.14327923]
[1617471803940,13.90695,2045.1,2044.9,0.14325195]
[1617471804240,11.0,2045.1,2045.0,0.14325155]
[1617471804841,11.0,2045.1,2044.9,0.14325257]
[1617471805043,11.0,2045.1,2045.0,0.14325318]
[1617471805444,11.0,2045.1,2044.9,0.14325402]
[1617471805944,11.0,2045.1,2045.0,0.1432526]
[1617471806344,11.0,2045.1,2044.9,0.14325185]
[1617471807644,11.0,2045.1,2044.6,11.38884386]
[1617471807845,13.2137,2045.1,2045.0,0.14328003]
[1617471808145,13.2137,2045.1,2043.8,2.0]
[1617471808146,13.2137,2045.1,2044.8,10.82185499]
[1617471808345,13.2137,2045.1,2044.7,10.9658551]
[1617471808549,13.2137,2045.1,2044.9,0.14329924]
[1617471808848,13.2137,2045.1,2045.0,9.68390162]
[1617471809048,16.12065,2045.1,2045.0,9.68390162]
[1617471809250,16.12065,2045.1,2045.0,0.14330233]
[1617471811556,16.12065,2045.1,2045.0,80.71790335]
[1617471811956,16.12065,2045.1,2045.0,71.03420233]
[1617471812358,13.90695,2045.1,2045.0,73.32674434]
[1617471812858,13.90695,2045.1,2045.0,71.03420233]
[1617471814160,13.90695,2045.1,2045.0,81.85949191]
[1617471816061,13.90695,2045.1,2045.0,71.03420233]
[1617471818063,13.90695,2045.1,2045.0,81.86466794]
[1617471818768,16.07795,2045.1,2045.0,10.97376794]
[1617471819267,16.07795,2045.1,2045.0,0.14330233]
[1617471820469,16.07795,2045.1,2044.9,0.14329197]
[1617471822173,13.90695,2045.1,2044.9,0.14329197]
[1617471822471,13.90695,2045.1,2045.0,64.9846]
[1617471822871,13.90695,2045.1,2045.0,65.12788112]
[1617471823072,13.90695,2045.1,2045.0,75.95841834]
[1617471824477,13.90695,2045.1,2045.0,65.12788112]
[1617471837094,13.90695,2045.1,2045.0,75.99439191]
[1617471837592,25.90695,2045.1,2045.0,75.99439191]
[1617471838494,25.90695,2045.1,2045.0,65.12788112]
[1617471846811,25.90695,2045.1,2045.0,75.99526956]
[1617471847011,25.90695,2045.1,2045.0,11.01066956]
[1617471847713,25.90695,2045.1,2045.0,0.14328112]
[1617471848514,25.90695,2045.1,2044.7,10.86940724]
[1617471848715,25.90695,2045.1,2045.0,9.72569213]
[1617471849314,25.90695,2045.1,2044.9,9.72575867]
[1617471849922,25.90695,2045.1,2044.5,10.86996557]
[1617471849923,25.90695,2045.1,2045.0,9.72504334]
[1617471850315,25.90695,2045.1,2045.0,0.14333235]
[1617471850718,25.90695,2045.1,2044.8,0.14333167]
[1617471853820,25.90695,2045.1,2044.6,0.1433301]
[1617471854622,27.90695,2045.1,2044.6,0.1433301]
[1617471855222,6.38305,2044.7,2044.5,0.14334545]
[1617471855522,6.38305,2044.7,2044.3,10.85395586]
[1617471855722,87.90575,2044.7,2044.3,10.85395586]
[1617471856022,87.90575,2044.7,2044.4,10.99704166]
[1617471856423,87.90575,2044.7,2044.5,0.14334323]
[1617471856822,87.90575,2044.7,2044.4,0.14334558]
[1617471857824,6.38305,2044.7,2044.3,0.14335879]
[1617471858022,2.0,2044.6,2044.3,0.14335879]
[1617471858321,2.0,2044.6,2044.1,0.14336031]
[1617471858322,55.9042,2044.3,2044.1,0.14336031]
[1617471858522,55.9042,2044.3,2043.9,10.85518164]
[1617471858922,55.9042,2044.3,2044.0,0.14336607]
[1617471859322,6.32195,2044.1,2044.0,0.14336607]
[1617471859722,5.33745,2044.1,2044.0,0.14336607]
[1617471860627,6.30745,2044.1,2044.0,0.14336607]
[1617471860926,6.30745,2044.1,2043.8,10.85581754]
[1617471860927,6.30745,2044.1,2043.9,0.1433684]
[1617471861127,5.33745,2044.1,2044.0,0.14336911]
[1617471862026,5.33745,2044.1,2043.9,10.99862772]
[1617471862227,6.30915,2044.1,2044.0,0.14336283]
[1617471862930,6.30915,2044.1,2044.0,10.9957393]
[1617471863630,6.30915,2044.1,2044.0,0.14336283]
[1617471864031,71.3874,2044.0,2043.8,10.85359912]
[1617471864434,73.3874,2044.0,2043.6,10.85401815]
[1617471864636,73.3874,2044.0,2043.6,9.29871815]
[1617471865036,73.3874,2044.0,2043.9,9.71193562]
[1617471865437,73.3874,2044.0,2043.9,1.51505231]
[1617471865735,73.3874,2044.0,2043.4,8.53740599]
[1617471866036,73.3874,2044.0,2043.3,8.53749509]
[1617471866637,73.3874,2044.0,2043.3,5.50179509]
[1617471866836,103.3874,2044.0,2043.3,5.24039509]
[1617471867039,103.3874,2044.0,2042.7,9.67642557]
[1617471867237,2.90695,2042.8,2042.7,9.67642557]
[1617471867438,5.07415,2042.8,2042.6,9.67682265]
[1617471867637,5.07415,2042.8,2042.7,9.67672195]
[1617471868144,5.07415,2042.8,2042.6,9.67699789]
[1617471868438,5.07415,2042.8,2042.5,9.67793426]
[1617471868439,75.1506,2042.6,2042.5,9.67793426]
[1617471868639,75.1506,2042.6,2041.5,2.29483499]
[1617471868640,75.1506,2042.6,2042.3,9.67857708]
[1617471869038,75.1506,2042.6,2042.2,9.67874629]
[1617471869439,5.41735,2042.3,2042.2,9.67874629]
[1617471869638,5.41735,2042.3,2042.2,4.629e-05]
[1617471869839,5.41735,2042.3,2041.5,2.29483499]
[1617471870139,5.41735,2042.3,2041.6,0.14345282]
[1617471870641,5.41735,2042.3,2041.5,0.14345241]
[1617471871340,2.90695,2041.6,2041.5,0.14345241]
[1617471874041,2.90695,2041.6,2041.4,78.9082]
[1617471874243,2.90695,2041.6,2040.8,2.29529746]
[1617471874843,2.90695,2041.6,2041.2,10.81477322]
[1617471875245,2.90695,2041.6,2041.3,0.14345575]
[1617471876545,2.90695,2041.6,2041.2,0.14345557]
[1617471876747,2.90695,2041.6,2041.1,10.81497681]
[1617471877149,2.90695,2041.6,2040.6,2.0]
[1617471877150,57.6777,2041.1,2040.8,7.36003328]
[1617471877347,2.90695,2040.9,2040.8,7.36003328]
[1617471877546,2.90695,2040.9,2040.8,7.21793328]
[1617471877947,2.90695,2040.9,2040.6,2.0]
[1617471878450,2.90695,2040.9,2040.8,5.09654903]
[1617471878848,2.90695,2040.9,2040.7,5.09699226]
[1617471879848,2.90695,2040.9,2040.6,5.0954374]
[1617471880047,84.93955,2040.9,2040.6,5.0954374]
[1617471880448,84.93955,2040.9,2040.6,2.8433374]
[1617471880748,84.93955,2040.9,2040.2,6.22810104]
[1617471881150,84.93955,2040.9,2039.7,2.90695]
[1617471881151,84.93955,2040.9,2040.3,6.22808495]
[1617471881349,2.90695,2040.4,2040.3,6.22808495]
[1617471882251,2.90695,2040.4,2040.2,6.22810146]
[1617471882452,57.7255,2040.1,2039.7,2.90695]
[1617471883554,2.90695,2039.8,2039.7,2.90695]
[1617471884052,2.90695,2039.8,2039.5,2.0]
[1617471885755,2.90695,2039.8,2039.2,4.90695]
[1617471887561,2.90695,2039.3,2039.2,4.90695]
[1617471887967,2.90695,2039.3,2039.2,13.4013562]
[1617471888265,2.90695,2039.3,2039.2,2.0]
[1617471888966,2.90695,2039.3,2039.0,8.49497494]
[1617471889367,2.90695,2039.3,2038.9,2.0]
[1617471889566,57.7255,2040.1,2039.0,2.90695]
[1617471890366,57.7255,2040.1,2039.0,4.47255]
[1617471890568,2.0,2041.7,2039.0,4.47255]
[1617471890768,57.1361,2041.0,2039.8,77.7617]
[1617471890968,2.0,2041.7,2040.8,77.7195]
[1617471891169,0.9733,2042.1,2040.8,80.1735]
[1617471891569,2.90695,2040.9,2040.8,80.1735]
[1617471894574,0.9733,2042.1,2040.8,80.1735]
[1617471894974,57.1051,2042.3,2040.8,80.1735]
[1617471895677,2.90695,2040.9,2040.8,80.1735]
[1617471895877,2.90695,2040.9,2040.8,77.7195]
[1617471896077,2.90695,2040.9,2039.9,2.0]
[1617471896282,2.90695,2040.9,2040.1,77.592]
[1617471896479,2.90695,2040.9,2040.1,79.592]
[1617471897681,2.90695,2040.2,2040.1,82.49895]
[1617471898281,63.0057,2041.3,2040.1,82.49895]
[1617471898482,14.9881,2042.9,2040.1,7.30005]
[1617471898682,74.078,2042.5,2041.0,55.6952]
[1617471898984,74.078,2042.5,2041.0,58.0387]
[1617471899583,2.90695,2041.1,2041.0,58.0387]
[1617471901794,2.90695,2041.1,2041.0,55.6952]
[1617471902196,2.90695,2041.1,2040.3,2.0]
[1617471902397,2.90695,2041.1,2040.4,64.6995]
[1617471903699,2.90695,2040.5,2040.4,64.6995]
[1617471904699,2.90695,2040.5,2039.7,2.0]
[1617471904898,5.42835,2040.5,2039.7,76.4412]
[1617471905299,5.42835,2040.5,2039.7,74.4412]
[1617471905699,2.90695,2039.8,2039.7,74.4412]
[1617471905900,5.04675,2039.8,2039.7,74.4412]
[1617471906600,5.04675,2039.8,2039.1,7.06260066]
[1617471906906,5.04675,2039.8,2039.1,2.0]
[1617471907504,2.90695,2039.8,2039.1,2.0]
[1617471907705,2.90695,2039.2,2039.1,2.0]
[1617471909013,2.90695,2039.2,2038.9,2.0]
[1617471909208,5.29685,2039.2,2038.9,2.0]
[1617471910510,5.29685,2039.2,2038.3,61.4394]
[1617471911713,2.90695,2038.4,2038.3,61.4394]
[1617471912011,82.24355,2038.4,2037.9,5.05393564]
[1617471912214,82.24355,2038.4,2037.7,2.0]
[1617471912215,82.24355,2038.4,2037.8,2.0]
[1617471912411,4.64575,2038.4,2037.8,2.0]
[1617471912612,1.7388,2038.4,2038.1,74.8867]
[1617471913012,2.3899,2039.2,2038.1,74.8867]
[1617471913215,77.3164,2039.3,2038.1,74.8867]
[1617471913612,77.3164,2039.3,2038.3,5.06240354]
[1617471913813,2.90695,2038.4,2038.3,5.06240354]
[1617471915417,66.13575,2038.4,2038.3,5.06240354]
[1617471916018,66.13575,2038.4,2038.1,5.06264097]
[1617471916924,66.13575,2038.4,2038.2,5.06257785]
[1617471917824,2.90695,2038.4,2038.2,5.06257785]
[1617471918123,2.90695,2038.4,2038.3,5.06244302]
[1617471918324,73.6965,2040.1,2038.3,5.06244302]
[1617471918624,73.6965,2040.1,2038.4,62.71610566]
[1617471919124,73.6965,2040.1,2038.8,2.0]
[1617471919925,73.6965,2040.1,2039.0,2.90695]
[1617471920831,0.9763,2041.1,2039.0,7.96622883]
[1617471921026,59.0527,2041.5,2039.8,70.0923]
[1617471921225,59.0527,2041.5,2039.8,72.0786]
[1617471921826,2.90695,2039.9,2039.8,72.0786]
[1617471923030,2.90695,2039.9,2039.8,1.9863]
[1617471924833,84.53815,2039.9,2039.8,1.9863]
[1617471925032,84.53815,2039.9,2039.6,5.07265905]
[1617471925331,84.53815,2039.9,2039.5,5.07277834]
[1617471925534,86.20245,2039.9,2039.5,5.07277834]
[1617471925732,86.20245,2039.9,2039.7,5.07341387]
[1617471925933,86.20245,2039.9,2039.4,5.07383838]
[1617471926336,86.20245,2039.9,2039.3,5.07415219]
[1617471926938,86.20245,2039.9,2039.1,5.07439366]
[1617471927338,116.20245,2039.9,2039.1,5.07439366]
[1617471927640,116.20245,2039.9,2038.9,6.20203669]
[1617471927641,78.4279,2039.5,2038.9,5.07502081]
[1617471927838,2.90695,2039.0,2038.9,5.07502081]
[1617471928139,5.53615,2039.0,2038.8,5.07547596]
[1617471928637,4.56725,2039.0,2038.7,5.07612119]
[1617471930040,4.56725,2039.0,2038.6,5.07625887]
[1617471930542,4.56725,2039.0,2037.9,63.6650766]
[1617471930543,2.90695,2039.0,2038.7,5.07591454]
[1617471930944,2.90695,2039.0,2038.9,5.07554918]
[1617471931644,2.90695,2039.0,2037.9,71.82534863]
[1617471931645,2.90695,2039.0,2038.8,5.07595061]
[1617471931843,4.45605,2039.0,2038.8,5.07595061]
[1617471932044,4.45605,2039.0,2038.7,5.07614624]
[1617471932346,4.45605,2039.0,2038.7,4.79654624]
[1617471932949,4.45605,2039.0,2037.9,69.55930993]
[1617471933348,2.90695,2039.0,2037.9,69.55930993]
[1617471933547,2.90695,2039.0,2038.1,6.19276733]
[1617471933848,2.90695,2039.0,2037.9,63.3661]
[1617471933849,2.90695,2038.3,2038.2,6.19275758]
[1617471934248,2.90695,2038.3,2038.1,6.19281063]
[1617471934850,2.90695,2038.3,2038.0,6.19297757]
[1617471936352,2.90695,2038.3,2038.1,6.19264068]
[1617471936752,2.90695,2038.3,2038.2,8.19264503]
[1617471937254,2.90695,2038.3,2038.2,2.0]
[1617471937852,2.90695,2038.3,2038.2,8.19308709]
[1617471938255,2.90695,2038.3,2038.2,2.0]
[1617471940060,5.24975,2038.3,2037.6,2.0]
[1617471941961,2.90695,2037.7,2037.6,2.0]
[1617471942160,4.70655,2037.7,2037.3,6.19565726]
[1617471942465,4.70655,2037.7,2037.1,5.0697162]
[1617471942660,4.70655,2037.7,2036.8,2.0]
[1617471942661,4.70655,2037.7,2037.0,5.0699253]
[1617471943062,4.70655,2037.7,2036.8,5.07067685]
[1617471943662,4.70655,2037.7,2037.5,6.22239297]
[1617471944364,4.70655,2037.7,2037.0,64.9465]
[1617471945064,2.90695,2037.7,2037.0,64.9465]
[1617471945467,2.90695,2037.7,2037.0,70.01635139]
[1617471945665,2.90695,2037.7,2037.1,2.0]
[1617471945868,58.2888,2038.5,2037.5,2.90695]
[1617471946067,58.2888,2038.5,2037.1,8.75059358]
[1617471946367,58.2888,2038.5,2037.2,5.06937339]
[1617471946967,58.2888,2038.5,2037.1,7.06949264]
[1617471947669,58.2888,2038.5,2037.2,7.06929669]
[1617471947872,2.90695,2037.3,2037.2,7.06929669]
[1617471949172,2.90695,2037.3,2037.2,2.0]
[1617471950674,2.90695,2037.3,2037.2,7.0690912]
[1617471951176,2.90695,2037.3,2037.2,2.0]
[1617471951775,2.90695,2037.3,2037.2,8.19507605]
[1617471953075,58.2888,2038.5,2037.2,8.19507605]
[1617471953276,58.2888,2038.5,2037.2,2.0]
[1617471953475,58.2888,2038.5,2037.2,3.6134]
[1617471953678,58.2888,2038.5,2037.6,5.068471]
[1617471953876,58.2888,2038.5,2037.7,2.0]
[1617471954077,58.2888,2038.5,2037.9,2.90695]
[1617471954276,58.2888,2038.5,2037.9,4.90695]
[1617471954676,2.0,2040.2,2037.9,4.90695]
[1617471954976,65.9577,2039.6,2037.9,2.0]
[1617471955377,68.2227,2039.6,2037.9,2.0]
[1617471955577,68.2227,2039.6,2037.9,7.08638226]
[1617471955977,2.90695,2038.0,2037.9,7.08638226]
[1617471957082,2.90695,2038.0,2037.9,5.08638226]
[1617471957282,5.25455,2038.0,2037.9,5.08638226]
[1617471957686,5.25455,2038.0,2037.8,5.08680659]
[1617471957887,5.25455,2038.0,2037.8,3.62750659]
[1617471958182,5.25455,2038.0,2037.5,6.21744744]
[1617471958582,5.25455,2038.0,2037.5,4.51364744]
[1617471958786,5.25455,2038.0,2037.4,6.21773633]
[1617471959184,5.25455,2038.0,2037.0,2.0]
[1617471959985,2.90695,2037.1,2037.0,2.0]
[1617471961188,2.90695,2037.1,2036.9,60.2308]
[1617471963389,2.90695,2037.1,2037.0,2.0]
[1617471963992,2.90695,2037.1,2037.0,9.34904497]
[1617471964189,2.90695,2037.1,2037.0,12.25599497]
[1617471964489,30.0,2042.6,2037.0,12.25599497]
[1617471964689,86.362,2040.3,2038.1,2.0]
[1617471964890,72.1058,2040.3,2038.1,2.0]
[1617471965594,2.0,2040.3,2038.1,2.0]
[1617471965795,2.0,2040.9,2038.8,77.3087]
[1617471966193,2.90695,2038.9,2038.8,77.3087]
[1617471968198,2.90695,2038.9,2038.8,80.21565]
[1617471968796,2.90695,2038.9,2038.8,4.82365]
[1617471969099,2.90695,2038.9,2038.5,10.79543017]
[1617471969296,2.90695,2038.9,2038.7,7.36384982]
[1617471969997,2.90695,2038.9,2038.7,9.12634982]
[1617471970299,56.5582,2039.7,2038.8,7.36330939]
[1617471970497,56.5582,2039.7,2038.6,2.90695]
[1617471970898,2.4179,2040.0,2039.3,5.09803792]
[1617471971098,71.2285,2040.5,2039.3,5.09803792]
[1617471971299,71.2285,2040.5,2039.4,5.09784379]
[1617471971499,71.2285,2040.5,2039.5,5.09772165]
[1617471971903,71.2285,2040.5,2039.4,5.09771513]
[1617471972100,2.90695,2039.5,2039.4,5.09771513]
[1617471973102,2.90695,2039.5,2038.9,80.2253]
[1617471973103,2.90695,2039.5,2039.2,5.09814431]
[1617471973501,2.90695,2039.5,2039.1,5.09817287]
[1617471974204,71.2285,2040.5,2039.2,5.09791418]
[1617471974803,71.2285,2040.5,2039.3,5.09789992]
[1617471975203,0.9885,2041.0,2039.4,7.38419748]
[1617471975405,0.9885,2041.0,2039.6,72.6565]
[1617471976004,2.0,2041.4,2039.6,74.6565]
[1617471976204,2.90695,2039.7,2039.6,74.6565]
[1617471978206,2.90695,2039.7,2039.6,82.01670271]
[1617471978406,2.90695,2039.7,2039.6,80.01670271]
[1617471978612,2.90695,2039.7,2039.6,7.36020271]
[1617471979310,2.90695,2039.7,2039.5,7.36721906]
[1617471979713,2.90695,2039.7,2039.6,6.23114238]
[1617471980309,2.90695,2039.7,2039.6,5.09892487]
[1617471981111,2.90695,2039.7,2039.4,7.36369523]
[1617471981312,2.90695,2039.7,2039.6,2.4762]
[1617471981513,2.90695,2039.7,2039.6,4.4762]
[1617471982115,2.571,2041.4,2039.6,7.38315]
[1617471982417,2.571,2041.4,2040.5,2.0]
[1617471982614,74.6987,2041.9,2040.7,2.0]
[1617471983014,74.6987,2041.9,2040.8,5.0961805]
[1617471983713,74.6987,2041.9,2040.7,5.09647159]
[1617471983914,74.6987,2041.9,2040.5,5.09657745]
[1617471984216,2.90695,2040.6,2040.5,5.09657745]
[1617471984417,2.90695,2040.6,2040.4,5.09684602]
[1617471984618,2.90695,2040.6,2040.0,5.09806227]
[1617471985016,2.90695,2040.6,2039.8,5.09838288]
[1617471985816,2.90695,2040.6,2039.6,6.23135685]
[1617471985817,2.90695,2040.6,2040.0,5.09804653]
[1617471986220,2.90695,2040.1,2040.0,5.09804653]
[1617471986418,2.90695,2040.1,2040.0,2.0]
[1617471987120,2.90695,2040.1,2039.7,7.36274787]
[1617471988223,2.2737,2041.1,2040.0,6.23023939]
[1617471988424,72.5058,2041.2,2039.7,0.13718939]
[1617471988623,72.5058,2041.2,2040.1,5.09747793]
[1617471989024,72.5058,2041.2,2040.2,5.09756543]
[1617471989226,2.3721,2041.2,2040.3,5.09731749]
[1617471989425,2.3721,2041.2,2040.3,83.51181749]
[1617471989727,2.571,2041.6,2040.4,5.10101372]
[1617471990326,2.90695,2040.5,2040.4,5.10101372]
[1617471991126,2.90695,2040.5,2040.3,78.4145]
[1617471991430,2.90695,2040.5,2040.4,2.29792946]
[1617471991828,2.90695,2040.5,2040.2,7.38726744]
[1617471992230,2.90695,2040.5,2040.4,2.29808751]
[1617471992428,2.90695,2040.5,2040.2,5.27045495]
[1617471992628,2.90695,2040.5,2040.4,5.11567828]
[1617471992828,2.90695,2040.5,2039.4,8.52613046]
[1617471993028,2.90695,2040.5,2039.3,71.7055]
[1617471994028,2.90695,2040.5,2039.4,2.0]
[1617471994231,2.90695,2039.5,2039.4,2.0]
[1617471995931,2.90695,2039.5,2039.4,10.52489357]
[1617471996831,2.90695,2039.5,2039.4,2.0]
[1617471997334,2.90695,2039.5,2039.4,10.52436228]
[1617471998232,2.90695,2039.5,2039.4,2.0]
[1617472000138,2.90695,2039.5,2039.4,10.52325634]
[1617472000335,2.90695,2039.5,2039.4,2.0]
[1617472001836,2.90695,2039.5,2039.4,4.29806221]
[1617472002236,2.90695,2039.5,2039.4,2.0]
[1617472003340,2.571,2042.1,2039.4,4.1475]
[1617472003639,2.571,2042.1,2040.2,74.6171]
[1617472004142,2.571,2042.1,2040.7,6.25087892]
[1617472004343,2.90695,2041.0,2040.9,5.11435548]
[1617472004543,2.90695,2041.0,2040.7,7.38708986]
[1617472008149,2.90695,2041.0,2040.9,7.38592676]
[1617472009148,2.90695,2041.0,2040.7,2.0]
[1617472009648,2.90695,2041.0,2040.9,7.38611243]
[1617472011049,2.90695,2041.0,2040.8,7.38658297]
[1617472011749,2.90695,2041.0,2040.9,7.38661269]
[1617472012149,2.90695,2041.0,2040.8,7.38654066]
[1617472012553,2.90695,2041.0,2040.9,7.38633506]
[1617472012850,2.90695,2041.0,2040.9,9.17143506]
[1617472013049,2.90695,2041.0,2040.9,1.7851]
[1617472013851,2.90695,2041.0,2040.8,2.0]
[1617472014554,65.9911,2043.2,2040.9,4.90695]
[1617472014754,2.571,2043.2,2040.9,6.87065]
[1617472015054,2.571,2043.2,2042.1,67.1498]
[1617472015356,2.571,2043.2,2042.4,5.11192991]
[1617472015655,2.571,2043.2,2042.1,67.1498]
[1617472016354,2.90695,2042.2,2042.1,67.1498]
[1617472017655,2.90695,2042.2,2041.9,2.90695]
[1617472017857,2.90695,2042.2,2041.6,5.09675886]
[1617472018056,5.81865,2042.2,2041.5,5.09694913]
[1617472018256,5.81865,2042.2,2041.5,4.85264913]
[1617472018459,2.90695,2041.6,2040.9,6.23094612]
[1617472018657,4.55295,2041.6,2040.9,6.23094612]
[1617472018856,4.55295,2041.6,2040.6,6.23179245]
[1617472019156,4.55295,2041.6,2040.5,6.2320001]
[1617472019663,4.55295,2041.6,2040.1,7.36509103]
[1617472019865,4.55295,2041.6,2040.1,9.36509103]
[1617472020265,2.90695,2041.6,2040.4,6.23229059]
[1617472020465,75.6866,2041.9,2040.6,2.90695]
[1617472021266,75.6866,2041.9,2040.7,6.23182511]
[1617472021468,75.6866,2041.9,2040.6,6.23192027]
[1617472022468,2.90695,2040.7,2040.6,6.23192027]
[1617472023472,2.90695,2040.7,2040.4,7.36037379]
[1617472023669,2.90695,2040.7,2040.4,9.36037379]
[1617472024368,2.90695,2040.7,2040.6,7.35992088]
[1617472024569,2.90695,2040.7,2040.6,10.26687088]
[1617472025169,2.90695,2040.7,2040.6,2.90695]
[1617472025871,75.6866,2041.9,2040.6,2.90695]
[1617472026070,0.977,2042.8,2040.6,2.90695]
[1617472026270,60.6879,2042.8,2040.9,67.1424]
[1617472026470,2.90695,2041.0,2040.9,67.1424]
[1617472027270,2.90695,2041.0,2040.9,69.28597412]
[1617472027772,2.90695,2041.0,2040.9,2.14357412]
[1617472027974,2.90695,2041.0,2040.9,0.14357412]
[1617472028171,4.56005,2041.0,2040.9,0.14357412]
[1617472028674,4.56005,2041.0,2040.8,5.09694725]
[1617472028873,4.56005,2041.0,2040.6,5.09736768]
[1617472029175,4.56005,2041.0,2040.5,5.09739126]
[1617472029673,4.56005,2041.0,2040.4,5.09751758]